[Event "EYCC Girls-U10 2019"]
[Site "Bratislava"]
[Date "2019.08.03"]
[Round "2.10"]
[White "Bursali, Ela"]
[Black "Goriachkina, Oksana"]
[Result "0-1"]
[ECO "B15"]
[WhiteElo "1197"]
[BlackElo "1417"]
[Annotator "NA"]
[PlyCount "78"]
[EventDate "2019.08.02"]
[EventType "swiss"]
[EventCountry "SVK"]
[SourceTitle "playchess.com"]
[Source "ChessBase"]
[SourceQuality "1"]
[TimeControl "40/5400+30:1800+30"]

1. e4 {[%emt 0:00:00]} c6 {[%emt 0:00:00]} 2. d4 {[%emt 0:00:00]} d5 {[%emt 0:00:00]} 3. Nc3 {[%emt 0:00:00]} dxe4 {[%emt 0:00:00]} 4. Nxe4 {[%emt 0:00:00]} Nf6 {[%emt 0:00:00]} 5. Nxf6+ {[%emt 0:02:56]} exf6 {[%emt 0:00:00]} 6. c3 {[%emt 0:01:07]} Bd6 {[%emt 0:00:00]} 7. Nf3 {[%emt 0:00:23]} O-O {[%emt 0:00:50]} 8. Be2 {[%emt 0:00:31]} Be6 {[%emt 0:00:20]} 9. O-O {[%emt 0:00:20]} Nd7 {[%emt 0:00:21]} 10. b3 {[%emt 0:00:49]} Re8 {[%emt 0:00:44]} 11. h3 {[%emt 0:00:24]} Nf8 {[%emt 0:00:44]} 12. c4 {[%emt 0:00:36]} Qd7 {[%emt 0:00:49]} 13. h4 {[%emt 0:06:33]} Bg4 {[%emt 0:14:15]} 14. Bb2 {[%emt 0:09:32]} Qe7 {[%emt 0:05:01]} 15. Bd3 {[%emt 0:02:03]} Ng6 {[%emt 0:08:51]} 16. g3 {[%emt 0:05:58]} f5 {[%emt 0:03:34]} 17. Re1 {[%emt 0:01:47]} Qc7 {[%emt 0:02:02]} 18. Rxe8+ {[%emt 0:01:35]} Rxe8 {[%emt 0:00:01]} 19. Kg2 {[%emt 0:00:26]} f4 {[%emt 0:01:43]} 20. c5 {[%emt 0:00:41]} Be7 {[%emt 0:01:31]} 21. Bxg6 {[%emt 0:00:12]} fxg6 {[%emt 0:00:45]} 22. Qd3 {[%emt 0:00:53]} Bf6 {[%emt 0:05:24]} 23. Ne5 {[%emt 0:04:16]} Bf5 {[%emt 0:05:20]} 24. Qd2 {[%emt 0:04:29]} fxg3 {[%emt 0:00:27]} 25. fxg3 {[%emt 0:00:18]} Rd8 {[%emt 0:03:23]} 26. Qf2 {[%emt 0:01:36]} Bxe5 {[%emt 0:03:14]} 27. dxe5 {[%emt 0:00:25]} Qa5 {[%emt 0:01:40]} 28. Bd4 {[%emt 0:00:54]} Rf8 {[%emt 0:03:48]} 29. Qe2 {[%emt 0:01:18]} Be6 {[%emt 0:00:20]} 30. Rc1 {[%emt 0:01:45]} Qd8 {[%emt 0:01:54]} 31. Qb2 {[%emt 0:08:12]} Qd5+ {[%emt 0:01:05]} 32. Kh2 {[%emt 0:00:32]} Qe4 {[%emt 0:03:23]} 33. Bc3 {[%emt 0:11:03]} Qg4 {[%emt 0:04:54]} 34. Qg2 {[%emt 0:01:50]} Bd5 {[%emt 0:00:53]} 35. Qd2 {[%emt 0:03:05]} Rf3 {[%emt 0:01:35]} 36. Rg1 {[%emt 0:02:52]} Qf5 {[%emt 0:00:35]} 37. Bd4 {[%emt 0:02:03]} Be6 {[%emt 0:03:26]} 38. Qg2 {[%emt 0:01:27]} Qg4 {[%emt 0:01:50]} 39. Bb2 {[%emt 0:01:21]} Rf2 {[%emt 0:00:25]} 0-1

[Event "EYCC Girls-U10 2019"]
[Site "Bratislava"]
[Date "2019.08.04"]
[Round "3.1"]
[White "Hnatyshyn, Anastasiia"]
[Black "Stoll, Lucia"]
[Result "1-0"]
[ECO "C96"]
[WhiteElo "1380"]
[BlackElo "1403"]
[Annotator "NA"]
[PlyCount "137"]
[EventDate "2019.08.02"]
[EventType "swiss"]
[EventCountry "SVK"]
[SourceTitle "playchess.com"]
[Source "ChessBase"]
[SourceQuality "1"]
[TimeControl "40/5400+30:1800+30"]

1. e4 {[%emt 0:00:00]} e5 {[%emt 0:00:00]} 2. Nf3 {[%emt 0:00:00]} Nc6 {[%emt 0:00:12]} 3. Bb5 {[%emt 0:00:00]} a6 {[%emt 0:00:40]} 4. Ba4 {[%emt 0:00:05]} Nf6 {[%emt 0:00:57]} 5. O-O {[%emt 0:00:19]} Be7 {[%emt 0:00:41]} 6. Re1 {[%emt 0:00:22]} b5 {[%emt 0:01:05]} 7. Bb3 {[%emt 0:00:08]} O-O {[%emt 0:01:08]} 8. c3 {[%emt 0:00:25]} d6 {[%emt 0:00:51]} 9. h3 {[%emt 0:00:07]} Na5 {[%emt 0:00:43]} 10. Bc2 {[%emt 0:00:17]} c5 {[%emt 0:00:46]} 11. d3 {[%emt 0:00:26]} Bb7 {[%emt 0:01:54]} 12. Nbd2 {[%emt 0:00:09]} Qc7 {[%emt 0:02:30]} 13. Nf1 {[%emt 0:00:50]} Nc6 {[%emt 0:02:08]} 14. Ng3 {[%emt 0:01:07]} Rfd8 {[%emt 0:07:38]} 15. Nf5 {[%emt 0:01:40]} d5 {[%emt 0:08:36]} 16. Qe2 {[%emt 0:04:21]} dxe4 {[%emt 0:07:08]} 17. dxe4 {[%emt 0:00:12]} Rac8 {[%emt 0:04:09]} 18. Nh2 {[%emt 0:07:30]} Ne8 {[%emt 0:13:13]} 19. Ng4 {[%emt 0:06:03]} Bf8 {[%emt 0:03:43]} 20. Qf3 {[%emt 0:06:12]} Nd6 {[%emt 0:02:56]} 21. Qg3 {[%emt 0:01:50]} Kh8 {[%emt 0:02:16]} 22. Nxe5 {[%emt 0:01:45]} Nxf5 {[%emt 0:01:00]} 23. exf5 {[%emt 0:00:26]} Nxe5 {[%emt 0:00:54]} 24. Qxe5 {[%emt 0:00:33]} Re8 {[%emt 0:00:20]} 25. Qxe8 {[%emt 0:00:16]} Rxe8 {[%emt 0:00:10]} 26. Rxe8 {[%emt 0:00:09]} Kg8 {[%emt 0:00:26]} 27. Be3 {[%emt 0:00:18]} Qc6 {[%emt 0:00:54]} 28. Re4 {[%emt 0:00:11]} Qf6 {[%emt 0:03:13]} 29. Rg4 {[%emt 0:03:02]} Bd6 {[%emt 0:03:49]} 30. Rd1 {[%emt 0:07:23]} h5 {[%emt 0:01:43]} 31. Rg5 {[%emt 0:01:00]} Qe5 {[%emt 0:00:27]} 32. g3 {[%emt 0:02:59]} f6 {[%emt 0:01:40]} 33. Rg6 {[%emt 0:01:02]} Bc6 {[%emt 0:02:04]} 34. Kf1 {[%emt 0:07:34]} Bc7 {[%emt 0:04:11]} 35. Bh6 {[%emt 0:01:58]} Kh7 {[%emt 0:09:09]} 36. Bxg7 {[%emt 0:01:46]} Bf3 {[%emt 0:02:46]} 37. Re1 {[%emt 0:00:53]} Qd6 {[%emt 0:01:34]} 38. Bxf6 {[%emt 0:00:29]} Bd8 {[%emt 0:01:33]} 39. Bxd8 {[%emt 0:01:13]} Qxd8 {[%emt 0:00:02]} 40. f6 {[%emt 0:00:00]} Qc8 {[%emt 0:00:00]} 41. Re7+ {[%emt 0:02:48]} Kh8 {[%emt 0:02:37]} 42. Rh6+ {[%emt 0:00:36]} Kg8 {[%emt 0:00:18]} 43. f7+ {[%emt 0:00:08]} Kg7 {[%emt 0:01:17]} 44. Rg6+ {[%emt 0:00:08]} Kf8 {[%emt 0:00:53]} 45. Re8+ {[%emt 0:00:20]} Qxe8 {[%emt 0:00:11]} 46. fxe8=Q+ {[%emt 0:01:04]} Kxe8 {[%emt 0:00:03]} 47. Rxa6 {[%emt 0:00:13]} Kd7 {[%emt 0:00:11]} 48. Rb6 {[%emt 0:00:14]} Bd5 {[%emt 0:00:18]} 49. Bb3 {[%emt 0:00:16]} c4 {[%emt 0:00:36]} 50. Bd1 {[%emt 0:00:11]} Bc6 {[%emt 0:00:10]} 51. Bxh5 {[%emt 0:00:35]} Kc7 {[%emt 0:00:17]} 52. Rxc6+ {[%emt 0:00:14]} Kxc6 {[%emt 0:00:06]} 53. g4 {[%emt 0:00:07]} Kd6 {[%emt 0:00:46]} 54. f4 {[%emt 0:00:16]} Ke6 {[%emt 0:00:15]} 55. Ke2 {[%emt 0:00:05]} Kf6 {[%emt 0:00:14]} 56. Ke3 {[%emt 0:00:13]} b4 {[%emt 0:00:10]} 57. g5+ {[%emt 0:00:08]} Kg7 {[%emt 0:00:07]} 58. f5 {[%emt 0:00:06]} b3 {[%emt 0:00:32]} 59. f6+ {[%emt 0:00:11]} Kg8 {[%emt 0:00:10]} 60. axb3 {[%emt 0:00:07]} cxb3 {[%emt 0:00:14]} 61. g6 {[%emt 0:01:42]} Kf8 {[%emt 0:00:27]} 62. g7+ {[%emt 0:00:21]} Kg8 {[%emt 0:00:06]} 63. Be8 {[%emt 0:00:14]} Kh7 {[%emt 0:00:16]} 64. Ba4 {[%emt 0:00:37]} Kg8 {[%emt 0:00:12]} 65. Bxb3+ {[%emt 0:00:08]} Kh7 {[%emt 0:00:07]} 66. g8=Q+ {[%emt 0:00:19]} Kh6 {[%emt 0:00:15]} 67. Qg7+ {[%emt 0:00:19]} Kh5 {[%emt 0:00:14]} 68. Bd1+ {[%emt 0:00:06]} Kh4 {[%emt 0:00:10]} 69. Qg4# {[%emt 0:00:04]} 1-0

[Event "EYCC Girls-U10 2019"]
[Site "Bratislava"]
[Date "2019.08.04"]
[Round "3.2"]
[White "Smietanska, Wiktoria"]
[Black "Abbasova, Zarifa"]
[Result "1-0"]
[ECO "A18"]
[WhiteElo "1547"]
[BlackElo "1353"]
[Annotator "NA"]
[PlyCount "57"]
[EventDate "2019.08.02"]
[EventType "swiss"]
[EventCountry "SVK"]
[SourceTitle "playchess.com"]
[Source "ChessBase"]
[SourceQuality "1"]
[TimeControl "40/5400+30:1800+30"]

1. c4 {[%emt 0:00:00]} Nf6 {[%emt 0:00:00]} 2. Nc3 {[%emt 0:00:00]} e6 {[%emt 0:00:00]} 3. e4 {[%emt 0:00:00]} d5 {[%emt 0:00:00]} 4. e5 {[%emt 0:00:11]} d4 {[%emt 0:00:00]} 5. exf6 {[%emt 0:00:12]} dxc3 {[%emt 0:00:00]} 6. bxc3 {[%emt 0:00:13]} Qxf6 {[%emt 0:00:00]} 7. Nf3 {[%emt 0:01:08]} h6 {[%emt 0:03:23]} 8. g3 {[%emt 0:05:23]} g6 {[%emt 0:09:30]} 9. Bg2 {[%emt 0:02:49]} Bg7 {[%emt 0:02:36]} 10. Ba3 {[%emt 0:03:03]} Nc6 {[%emt 0:06:58]} 11. O-O {[%emt 0:06:00]} Bf8 {[%emt 0:03:49]} 12. Bxf8 {[%emt 0:01:21]} Kxf8 {[%emt 0:02:09]} 13. d4 {[%emt 0:05:29]} Kg7 {[%emt 0:01:13]} 14. Rb1 {[%emt 0:05:19]} Rb8 {[%emt 0:04:58]} 15. Nd2 {[%emt 0:02:40]} Ne7 {[%emt 0:06:33]} 16. Ne4 {[%emt 0:01:48]} Qf5 17. Rb5 e5 {[%emt 0:03:07]} 18. Rxe5 {[%emt 0:01:10]} Qd7 {[%emt 0:12:42]} 19. Qf3 f5 20. Nc5 {[%emt 0:07:20]} Qd6 {[%emt 0:02:49]} 21. Qe2 {[%emt 0:05:01]} Ng8 {[%emt 0:10:16]} 22. Re1 {[%emt 0:03:34]} b6 {[%emt 0:05:43]} 23. Rd5 {[%emt 0:01:36]} Qf6 {[%emt 0:02:34]} 24. Nd7 {[%emt 0:00:17]} Bxd7 {[%emt 0:00:22]} 25. Rxd7+ {[%emt 0:00:13]} Kf8 {[%emt 0:00:05]} 26. Bd5 {[%emt 0:01:17]} h5 {[%emt 0:04:02]} 27. Rf7+ {[%emt 0:00:37]} Qxf7 {[%emt 0:00:05]} 28. Bxf7 {[%emt 0:00:07]} Kxf7 {[%emt 0:00:01]} 29. Qe5 {[%emt 0:00:40]} 1-0

[Event "EYCC Girls-U10 2019"]
[Site "Bratislava"]
[Date "2019.08.04"]
[Round "3.3"]
[White "Kuznecova, Marija"]
[Black "Fedorova, Olesya"]
[Result "1-0"]
[ECO "A45"]
[WhiteElo "1375"]
[BlackElo "1516"]
[Annotator "NA"]
[PlyCount "65"]
[EventDate "2019.08.02"]
[EventType "swiss"]
[EventCountry "SVK"]
[SourceTitle "playchess.com"]
[Source "ChessBase"]
[SourceQuality "1"]
[TimeControl "40/5400+30:1800+30"]

1. d4 {[%emt 0:00:00]} Nf6 {[%emt 0:00:00]} 2. Bf4 {[%emt 0:00:00]} c5 {[%emt 0:00:00]} 3. c3 {[%emt 0:00:00]} Qb6 {[%emt 0:00:13]} 4. Qc2 {[%emt 0:00:37]} Nc6 {[%emt 0:02:23]} 5. e3 {[%emt 0:01:50]} g6 {[%emt 0:02:50]} 6. Nf3 {[%emt 0:02:16]} Bg7 {[%emt 0:00:56]} 7. Nbd2 {[%emt 0:00:47]} d5 {[%emt 0:03:30]} 8. Ne5 {[%emt 0:01:37]} Bf5 {[%emt 0:03:03]} 9. Bd3 {[%emt 0:07:27]} Bxd3 {[%emt 0:03:12]} 10. Nxd3 {[%emt 0:01:25]} c4 {[%emt 0:02:30]} 11. Ne5 {[%emt 0:02:17]} Nh5 {[%emt 0:06:17]} 12. Ndf3 {[%emt 0:04:37]} Nxf4 {[%emt 0:03:12]} 13. exf4 {[%emt 0:00:28]} Qc7 {[%emt 0:00:41]} 14. Qd2 {[%emt 0:07:30]} O-O {[%emt 0:02:12]} 15. h4 {[%emt 0:04:26]} h5 {[%emt 0:03:07]} 16. g4 {[%emt 0:04:31]} Nxe5 {[%emt 0:01:50]} 17. Nxe5 {[%emt 0:00:33]} Bxe5 {[%emt 0:02:47]} 18. fxe5 {[%emt 0:00:09]} Kh7 {[%emt 0:13:31]} 19. gxh5 {[%emt 0:01:34]} Qc6 {[%emt 0:03:40]} 20. Rg1 {[%emt 0:04:06]} Rg8 {[%emt 0:01:12]} 21. Rg5 {[%emt 0:05:07]} Qe6 {[%emt 0:06:49]} 22. O-O-O {[%emt 0:01:50]} a5 {[%emt 0:03:50]} 23. Rdg1 {[%emt 0:02:09]} Ra6 {[%emt 0:03:41]} 24. Qc2 {[%emt 0:00:55]} Kh8 {[%emt 0:01:53]} 25. f4 {[%emt 0:01:48]} Qc6 {[%emt 0:03:00]} 26. f5 {[%emt 0:00:46]} Qe8 {[%emt 0:01:19]} 27. hxg6 {[%emt 0:01:24]} fxg6 {[%emt 0:00:05]} 28. h5 {[%emt 0:01:08]} b5 {[%emt 0:01:13]} 29. Qh2 {[%emt 0:02:44]} b4 {[%emt 0:00:23]} 30. hxg6+ {[%emt 0:00:36]} Kg7 {[%emt 0:00:23]} 31. Qh7+ {[%emt 0:00:12]} Kf8 {[%emt 0:00:05]} 32. g7+ {[%emt 0:00:15]} Kf7 {[%emt 0:00:06]} 33. Qh5+ {[%emt 0:00:12]} 1-0

[Event "EYCC Girls-U10 2019"]
[Site "Bratislava"]
[Date "2019.08.04"]
[Round "3.4"]
[White "Petrenko, Maryna"]
[Black "Kirtadze, Anastasia"]
[Result "0-1"]
[ECO "A46"]
[WhiteElo "1335"]
[BlackElo "1532"]
[Annotator "NA"]
[PlyCount "152"]
[EventDate "2019.08.02"]
[EventType "swiss"]
[EventCountry "SVK"]
[SourceTitle "playchess.com"]
[Source "ChessBase"]
[SourceQuality "1"]
[TimeControl "40/5400+30:1800+30"]

1. d4 {[%emt 0:00:00]} Nf6 {[%emt 0:00:00]} 2. Nf3 {[%emt 0:00:00]} d6 {[%emt 0:00:00]} 3. Bf4 {[%emt 0:00:00]} g6 {[%emt 0:00:00]} 4. e3 {[%emt 0:00:10]} Bg7 {[%emt 0:00:17]} 5. Be2 {[%emt 0:00:21]} O-O {[%emt 0:00:26]} 6. h3 {[%emt 0:00:52]} Nbd7 {[%emt 0:00:26]} 7. O-O {[%emt 0:00:59]} c5 {[%emt 0:00:38]} 8. c3 {[%emt 0:01:41]} Re8 {[%emt 0:07:17]} 9. Bh2 {[%emt 0:06:58]} Qb6 {[%emt 0:05:45]} 10. Na3 {[%emt 0:11:49]} a6 {[%emt 0:09:48]} 11. Rc1 {[%emt 0:18:46]} d5 {[%emt 0:14:22]} 12. b3 {[%emt 0:14:22]} Qa5 {[%emt 0:01:17]} 13. Nb1 {[%emt 0:04:49]} Qb6 {[%emt 0:15:03]} 14. c4 {[%emt 0:15:05]} e6 {[%emt 0:06:21]} 15. Nc3 {[%emt 0:03:52]} Ne4 {[%emt 0:03:55]} 16. cxd5 {[%emt 0:02:22]} Nxc3 {[%emt 0:00:10]} 17. Rxc3 {[%emt 0:00:08]} exd5 {[%emt 0:00:05]} 18. dxc5 {[%emt 0:02:47]} Nxc5 {[%emt 0:00:13]} 19. Rc1 {[%emt 0:00:23]} Be6 {[%emt 0:00:46]} 20. Nd4 {[%emt 0:00:51]} Rac8 {[%emt 0:00:54]} 21. Bf3 {[%emt 0:01:01]} Ne4 {[%emt 0:01:16]} 22. Qd3 {[%emt 0:00:47]} Ng5 {[%emt 0:07:03]} 23. Be2 {[%emt 0:04:57]} Bxd4 {[%emt 0:04:14]} 24. exd4 {[%emt 0:00:16]} Rxc1 {[%emt 0:01:24]} 25. Rxc1 {[%emt 0:00:05]} Bf5 {[%emt 0:00:08]} 26. Qd1 {[%emt 0:02:12]} Qe6 {[%emt 0:02:39]} 27. Bf1 {[%emt 0:01:57]} h5 {[%emt 0:02:58]} 28. Bf4 {[%emt 0:01:43]} Nh7 {[%emt 0:00:42]} 29. Be3 {[%emt 0:01:30]} Qf6 {[%emt 0:01:25]} 30. Qf3 {[%emt 0:00:38]} Qe6 {[%emt 0:00:51]} 31. Qd1 {[%emt 0:00:53]} h4 {[%emt 0:01:23]} 32. Bd3 {[%emt 0:00:40]} Qf6 {[%emt 0:02:52]} 33. Bxf5 {[%emt 0:00:20]} Qxf5 {[%emt 0:00:07]} 34. Qc2 {[%emt 0:00:44]} Qh5 {[%emt 0:01:31]} 35. Qd1 {[%emt 0:00:15]} Qxd1+ {[%emt 0:01:57]} 36. Rxd1 {[%emt 0:00:06]} Rc8 {[%emt 0:00:04]} 37. Rc1 {[%emt 0:00:53]} Rxc1+ {[%emt 0:00:27]} 38. Bxc1 {[%emt 0:00:02]} f5 {[%emt 0:00:40]} 39. Kh2 {[%emt 0:00:50]} Kf7 {[%emt 0:00:19]} 40. g3 {[%emt 0:00:00]} hxg3+ {[%emt 0:00:00]} 41. Kxg3 {[%emt 0:00:34]} Nf8 {[%emt 0:00:38]} 42. Kf4 {[%emt 0:01:15]} Kf6 {[%emt 0:00:17]} 43. h4 {[%emt 0:01:26]} Ne6+ {[%emt 0:00:07]} 44. Ke3 {[%emt 0:00:16]} f4+ {[%emt 0:00:13]} 45. Kf3 {[%emt 0:01:44]} Kf5 {[%emt 0:01:08]} 46. Bb2 {[%emt 0:02:51]} g5 {[%emt 0:00:16]} 47. hxg5 {[%emt 0:03:53]} Nxg5+ {[%emt 0:00:10]} 48. Ke2 {[%emt 0:00:06]} Ke4 {[%emt 0:00:12]} 49. Bc1 {[%emt 0:02:00]} f3+ {[%emt 0:00:22]} 50. Kd1 {[%emt 0:00:06]} Ne6 {[%emt 0:00:08]} 51. Be3 {[%emt 0:00:45]} Nxd4 {[%emt 0:00:06]} 52. Kd2 {[%emt 0:00:05]} Nb5 {[%emt 0:00:21]} 53. Bc5 {[%emt 0:01:21]} d4 {[%emt 0:00:41]} 54. Bb4 {[%emt 0:02:08]} Nc7 {[%emt 0:00:18]} 55. Bc5 {[%emt 0:01:16]} Nd5 {[%emt 0:00:24]} 56. a3 {[%emt 0:00:58]} Nf4 {[%emt 0:00:27]} 57. Be7 {[%emt 0:00:23]} Nd5 {[%emt 0:00:41]} 58. Bc5 {[%emt 0:00:23]} Nf6 {[%emt 0:01:08]} 59. Be7 {[%emt 0:00:13]} Ng4 {[%emt 0:00:24]} 60. Bh4 {[%emt 0:00:07]} Nh2 {[%emt 0:00:10]} 61. Be7 {[%emt 0:00:21]} Ng4 {[%emt 0:01:50]} 62. Bh4 {[%emt 0:00:16]} Ne5 {[%emt 0:00:20]} 63. Be7 {[%emt 0:00:28]} Nc6 {[%emt 0:00:57]} 64. Bg5 {[%emt 0:01:05]} Ne5 {[%emt 0:00:58]} 65. Be7 {[%emt 0:00:05]} Nd3 {[%emt 0:00:11]} 66. Bh4 {[%emt 0:00:06]} Nc5 {[%emt 0:00:18]} 67. b4 {[%emt 0:00:27]} Na4 {[%emt 0:00:38]} 68. Kc2 {[%emt 0:01:52]} d3+ {[%emt 0:00:49]} 69. Kc1 {[%emt 0:01:40]} Nb6 {[%emt 0:00:41]} 70. Bg5 {[%emt 0:00:08]} Nc4 {[%emt 0:00:26]} 71. a4 {[%emt 0:00:14]} Nb6 {[%emt 0:00:34]} 72. a5 {[%emt 0:00:19]} Nd5 {[%emt 0:00:06]} 73. Bd2 {[%emt 0:00:05]} Kd4 {[%emt 0:00:14]} 74. Kb2 {[%emt 0:00:28]} Kc4 {[%emt 0:00:14]} 75. Ka3 {[%emt 0:00:28]} Nc3 {[%emt 0:00:17]} 76. Be3 {[%emt 0:01:53]} Nd1 {[%emt 0:00:13]} 0-1

[Event "EYCC Girls-U10 2019"]
[Site "Bratislava"]
[Date "2019.08.04"]
[Round "3.5"]
[White "Ciarletta, Iris"]
[Black "Bagas, Ana"]
[Result "1/2-1/2"]
[ECO "C01"]
[WhiteElo "1329"]
[BlackElo "1442"]
[Annotator "NA"]
[PlyCount "117"]
[EventDate "2019.08.02"]
[EventType "swiss"]
[EventCountry "SVK"]
[SourceTitle "playchess.com"]
[Source "ChessBase"]
[SourceQuality "1"]
[TimeControl "40/5400+30:1800+30"]

1. e4 {[%emt 0:00:00]} e6 {[%emt 0:00:00]} 2. d4 {[%emt 0:00:00]} d5 {[%emt 0:00:00]} 3. exd5 {[%emt 0:00:07]} exd5 {[%emt 0:00:01]} 4. Bd3 {[%emt 0:00:49]} Bd6 {[%emt 0:00:13]} 5. Ne2 {[%emt 0:00:58]} Nc6 {[%emt 0:00:19]} 6. c3 {[%emt 0:00:33]} Nge7 {[%emt 0:00:37]} 7. Bf4 {[%emt 0:01:19]} Bf5 {[%emt 0:01:14]} 8. O-O {[%emt 0:01:11]} Qd7 {[%emt 0:02:05]} 9. Bxd6 {[%emt 0:00:41]} Qxd6 {[%emt 0:00:58]} 10. Ng3 {[%emt 0:01:26]} Bg6 {[%emt 0:02:10]} 11. Bxg6 {[%emt 0:00:53]} hxg6 {[%emt 0:00:54]} 12. Nd2 {[%emt 0:01:56]} O-O-O {[%emt 0:02:17]} 13. Nf3 {[%emt 0:01:59]} f6 {[%emt 0:04:06]} 14. Qd3 {[%emt 0:02:17]} Rh7 {[%emt 0:03:35]} 15. Rfe1 {[%emt 0:01:44]} Rdh8 {[%emt 0:06:49]} 16. h3 {[%emt 0:00:36]} Qd7 {[%emt 0:05:44]} 17. Kf1 {[%emt 0:01:53]} g5 {[%emt 0:06:27]} 18. Re3 {[%emt 0:01:18]} g4 {[%emt 0:03:10]} 19. hxg4 {[%emt 0:00:32]} Qxg4 {[%emt 0:00:40]} 20. Rae1 {[%emt 0:02:12]} Qd7 {[%emt 0:06:18]} 21. Re6 {[%emt 0:02:38]} g5 {[%emt 0:01:59]} 22. Ng1 {[%emt 0:01:19]} Rf7 {[%emt 0:02:55]} 23. Nf5 {[%emt 0:03:18]} Nxf5 {[%emt 0:01:00]} 24. Qxf5 {[%emt 0:00:11]} Nd8 {[%emt 0:00:50]} 25. g4 {[%emt 0:01:38]} Nxe6 {[%emt 0:00:30]} 26. Qxe6 {[%emt 0:01:01]} Qxe6 {[%emt 0:00:11]} 27. Rxe6 {[%emt 0:00:04]} Kd7 {[%emt 0:00:13]} 28. Re2 {[%emt 0:02:04]} f5 {[%emt 0:02:56]} 29. Re5 {[%emt 0:00:22]} Kd6 {[%emt 0:00:55]} 30. gxf5 {[%emt 0:01:10]} Rhf8 {[%emt 0:00:30]} 31. Re6+ {[%emt 0:01:11]} Kd7 {[%emt 0:00:17]} 32. Rg6 {[%emt 0:00:31]} Rxf5 33. Nh3 {[%emt 0:00:24]} a5 {[%emt 0:01:13]} 34. Rg7+ {[%emt 0:01:54]} R5f7 {[%emt 0:01:49]} 35. Rxg5 {[%emt 0:02:09]} c6 {[%emt 0:00:45]} 36. Ke2 {[%emt 0:02:21]} Re8+ {[%emt 0:00:34]} 37. Kd2 {[%emt 0:00:31]} Kc7 {[%emt 0:01:18]} 38. c4 {[%emt 0:01:03]} Rd8 {[%emt 0:00:39]} 39. c5 {[%emt 0:02:03]} Re8 {[%emt 0:02:13]} 40. Rg4 {[%emt 0:00:00]} Rf3 {[%emt 0:00:00]} 41. Rg7+ {[%emt 0:02:46]} Kb8 {[%emt 0:04:39]} 42. Rg3 {[%emt 0:00:24]} Rxg3 {[%emt 0:00:26]} 43. fxg3 {[%emt 0:00:14]} Rg8 {[%emt 0:00:25]} 44. Nf2 {[%emt 0:00:53]} Rxg3 {[%emt 0:00:23]} 45. Nd3 {[%emt 0:00:14]} Kc7 {[%emt 0:02:22]} 46. Ne5 {[%emt 0:00:36]} Kd8 {[%emt 0:01:03]} 47. Nf7+ {[%emt 0:00:51]} Kc7 {[%emt 0:01:21]} 48. Ne5 {[%emt 0:00:14]} b6 {[%emt 0:01:15]} 49. cxb6+ {[%emt 0:00:43]} Kxb6 {[%emt 0:00:49]} 50. Nd7+ {[%emt 0:00:06]} Kb5 {[%emt 0:00:51]} 51. Kc2 {[%emt 0:01:42]} Kc4 {[%emt 0:00:51]} 52. Ne5+ {[%emt 0:00:12]} Kb5 {[%emt 0:02:29]} 53. Nd3 {[%emt 0:01:23]} Kc4 {[%emt 0:03:24]} 54. Ne5+ {[%emt 0:00:28]} Kxd4 {[%emt 0:01:11]} 55. Nxc6+ {[%emt 0:00:05]} Kc5 {[%emt 0:00:27]} 56. Nxa5 {[%emt 0:00:13]} d4 {[%emt 0:05:26]} 57. Nb3+ {[%emt 0:00:11]} Kd5 {[%emt 0:01:07]} 58. Nd2 {[%emt 0:00:48]} Rg8 {[%emt 0:02:11]} 59. Kd3 1/2-1/2

[Event "EYCC Girls-U10 2019"]
[Site "Bratislava"]
[Date "2019.08.04"]
[Round "3.6"]
[White "Kusakina, Uliana"]
[Black "Seyhan, Pelin"]
[Result "0-1"]
[ECO "C07"]
[WhiteElo "1364"]
[BlackElo "1333"]
[Annotator "NA"]
[PlyCount "110"]
[EventDate "2019.08.02"]
[EventType "swiss"]
[EventCountry "SVK"]
[SourceTitle "playchess.com"]
[Source "ChessBase"]
[SourceQuality "1"]
[TimeControl "40/5400+30:1800+30"]

1. e4 {[%emt 0:00:00]} e6 {[%emt 0:00:00]} 2. d4 {[%emt 0:00:00]} d5 {[%emt 0:00:00]} 3. Nd2 {[%emt 0:00:00]} c5 {[%emt 0:00:00]} 4. c3 {[%emt 0:01:19]} Nc6 {[%emt 0:00:26]} 5. Ngf3 {[%emt 0:02:43]} Nf6 {[%emt 0:08:53]} 6. e5 {[%emt 0:01:22]} Nd7 {[%emt 0:00:20]} 7. Be2 {[%emt 0:02:55]} Qb6 {[%emt 0:01:00]} 8. Nf1 {[%emt 0:07:42]} cxd4 {[%emt 0:01:09]} 9. cxd4 {[%emt 0:00:52]} Bb4+ {[%emt 0:00:10]} 10. Bd2 {[%emt 0:04:17]} Nxd4 {[%emt 0:04:13]} 11. Nxd4 {[%emt 0:02:20]} Qxd4 {[%emt 0:00:19]} 12. Bxb4 {[%emt 0:01:55]} Qxb4+ {[%emt 0:00:12]} 13. Qd2 {[%emt 0:00:30]} Qxd2+ {[%emt 0:00:12]} 14. Nxd2 {[%emt 0:00:10]} Nxe5 {[%emt 0:00:07]} 15. f4 {[%emt 0:00:46]} Nc6 {[%emt 0:00:18]} 16. Kf2 {[%emt 0:02:11]} O-O {[%emt 0:02:50]} 17. g4 {[%emt 0:03:31]} Bd7 {[%emt 0:05:23]} 18. Rag1 {[%emt 0:03:36]} Rac8 {[%emt 0:00:50]} 19. h4 {[%emt 0:01:24]} Nb4 {[%emt 0:11:28]} 20. a3 {[%emt 0:01:06]} Rc2 {[%emt 0:01:13]} 21. Rd1 {[%emt 0:02:17]} Nc6 {[%emt 0:02:05]} 22. b3 {[%emt 0:01:19]} Nd4 {[%emt 0:00:38]} 23. Bd3 {[%emt 0:00:54]} Ra2 {[%emt 0:00:50]} 24. Ke3 {[%emt 0:01:41]} Nc2+ {[%emt 0:01:10]} 25. Bxc2 {[%emt 0:00:51]} Rxc2 {[%emt 0:00:15]} 26. h5 {[%emt 0:00:57]} f6 {[%emt 0:01:36]} 27. Nb1 {[%emt 0:07:18]} Bc6 {[%emt 0:00:52]} 28. Kd4 {[%emt 0:05:18]} Bb5 {[%emt 0:01:38]} 29. Nc3 {[%emt 0:03:06]} Ba6 {[%emt 0:01:29]} 30. Rhe1 {[%emt 0:02:26]} Rc8 {[%emt 0:01:26]} 31. Re3 {[%emt 0:04:31]} Rc6 {[%emt 0:03:55]} 32. a4 {[%emt 0:04:16]} Rb6 {[%emt 0:01:50]} 33. Nb5 {[%emt 0:02:08]} Bxb5 {[%emt 0:00:39]} 34. axb5 {[%emt 0:03:40]} Rg2 {[%emt 0:00:22]} 35. Rc1 {[%emt 0:01:57]} h6 {[%emt 0:00:42]} 36. Rc8+ {[%emt 0:00:33]} Kh7 {[%emt 0:00:10]} 37. Re8 {[%emt 0:01:45]} Rxg4 {[%emt 0:00:37]} 38. R3xe6 {[%emt 0:01:07]} Rxf4+ {[%emt 0:00:33]} 39. Kd3 {[%emt 0:05:32]} Rxb5 {[%emt 0:00:50]} 40. Rc8 {[%emt 0:00:00]} Rxb3+ {[%emt 0:00:00]} 41. Kd2 {[%emt 0:03:13]} Rf2+ {[%emt 0:01:06]} 42. Ke1 {[%emt 0:00:23]} Rh2 {[%emt 0:00:35]} 43. Kd1 {[%emt 0:03:24]} Rb1+ {[%emt 0:00:12]} 44. Rc1 {[%emt 0:00:13]} Rh1+ {[%emt 0:00:08]} 45. Kd2 {[%emt 0:02:50]} Rbxc1 {[%emt 0:00:10]} 46. Re7 {[%emt 0:00:28]} Rhd1+ {[%emt 0:00:10]} 47. Ke3 {[%emt 0:00:19]} Re1+ {[%emt 0:00:07]} 48. Kd4 {[%emt 0:00:07]} Rxe7 {[%emt 0:00:06]} 49. Kxd5 {[%emt 0:00:10]} Re5+ {[%emt 0:00:24]} 50. Kd4 {[%emt 0:00:18]} Rd1+ {[%emt 0:00:13]} 51. Kc3 {[%emt 0:00:11]} Rc5+ {[%emt 0:00:06]} 52. Kb2 {[%emt 0:00:08]} Rd6 {[%emt 0:00:13]} 53. Kb3 {[%emt 0:00:34]} Rb6+ {[%emt 0:00:06]} 54. Ka4 {[%emt 0:00:08]} Rc1 {[%emt 0:00:28]} 55. Ka3 {[%emt 0:00:24]} Ra1# {[%emt 0:00:07]} 0-1